fUSD/lending_fUSD_20260107
["ID","MTS","AMOUNT","RATE_DAILY","PERIOD"]
[400690083,1767779466098,-847.9,0.00038356,14]
[400690085,1767779466108,-500.0,0.00038356,14]
[400690087,1767779466117,-500.0,0.00038356,14]
[400690089,1767779466126,-500.0,0.00038356,14]
[400690090,1767779466135,-500.0,0.00038356,14]
[400690092,1767779466145,-500.0,0.00038356,14]
[400690094,1767779466157,-500.0,0.00038356,14]
[400690096,1767779466167,-769.19,0.00038356,14]
[400690098,1767779466178,-500.0,0.00038356,14]
[400690101,1767779466187,-206.61116019,0.00038356,14]
[400690103,1767779466197,-500.0,0.00038356,14]
[400690104,1767779466206,-151.0,0.00038356,120]
[400690106,1767779466216,-588.93,0.00038356,14]
[400690108,1767779466226,-500.0,0.00038356,14]
[400690110,1767779466235,-500.0,0.00038356,14]
[400690112,1767779466244,-500.0,0.00038356,14]
[400690114,1767779466256,-577.88143864,0.00038356,14]
[400690116,1767779466265,-222.615984,0.00038356,120]
[400690118,1767779466274,-467.653299,0.00038356,120]
[400690120,1767779466283,-500.0,0.00038356,14]
[400690122,1767779466292,-500.0,0.00038356,14]
[400690124,1767779466302,-300.0,0.00038356,2]
[400690126,1767779466311,-500.0,0.00038356,14]
[400690128,1767779466320,-222.615984,0.00038356,120]
[400690130,1767779466329,-467.653299,0.00038356,120]
[400690132,1767779466338,-625.28,0.00038356,14]
[400690134,1767779466347,-500.0,0.00038356,14]
[400690136,1767779466356,-1281.43,0.00038356,14]
[400690138,1767779466366,-754.88,0.00038356,14]
[400690140,1767779466375,-768.99,0.00038356,14]
[400690142,1767779466384,-500.0,0.00038356,14]
[400690144,1767779466393,-222.615984,0.00038356,120]
[400690146,1767779466404,-467.653299,0.00038356,120]
[400690148,1767779466414,-1134.1,0.00038356,14]
[400690150,1767779466423,-701.91,0.00038356,14]
[400690152,1767779466433,-500.0,0.00038356,14]
[400690154,1767779466442,-467.653299,0.00038356,120]
[400690156,1767779466452,-500.0,0.00038356,14]
[400690158,1767779466462,-222.615984,0.00038356,120]
[400690160,1767779466471,-500.0,0.00038356,14]
[400690162,1767779466480,-522.6,0.00038356,14]
[400690164,1767779466489,-500.0,0.00038356,14]
[400690166,1767779466498,-500.0,0.00038356,14]
[400690167,1767779466507,-500.0,0.00038356,14]
[400690169,1767779466517,-800.11,0.00038356,14]
[400690171,1767779466526,-500.0,0.00038356,14]
[400690173,1767779466535,-500.0,0.00038356,14]
[400690175,1767779466544,-1883.86,0.00038356,14]
[400690177,1767779466553,-500.0,0.00038356,14]
[400690179,1767779466563,-500.0,0.00038356,14]
[400690181,1767779466572,-508.25,0.00038356,14]
[400690183,1767779466580,-1372.02,0.00038356,14]
[400690185,1767779466589,-500.0,0.00038356,14]
[400690187,1767779466598,-500.0,0.00038356,14]
[400690189,1767779466607,-500.0,0.00038356,14]
[400690191,1767779466616,-500.0,0.00038356,14]
[400690193,1767779466625,-500.0,0.00038356,14]
[400690195,1767779466634,-912.56,0.00038356,14]
[400690197,1767779466643,-500.0,0.00038356,14]
[400690199,1767779466652,-1663.73,0.00038356,14]
[400690201,1767779466662,-1587.88,0.00038356,14]
[400690203,1767779466671,-500.0,0.00038356,14]
[400690205,1767779466680,-541.12,0.00038356,14]
[400690207,1767779466689,-500.0,0.00038356,14]
[400690209,1767779466698,-500.0,0.00038356,14]
[400690211,1767779466707,-500.0,0.00038356,14]
[400690213,1767779466715,-569.23,0.00038356,14]
[400690215,1767779466724,-500.0,0.00038356,14]
[400690217,1767779466733,-500.0,0.00038356,14]
[400690219,1767779466742,-500.0,0.00038356,14]
[400690221,1767779466764,-500.0,0.00038356,14]
[400690223,1767779466778,-500.0,0.00038356,14]
[400690225,1767779466788,-2334.57,0.00038356,14]
[400690227,1767779466799,-500.0,0.00038356,14]
[400690229,1767779466809,-500.0,0.00038356,14]
[400690231,1767779466819,-503.71834957,0.00038356,14]
[400690233,1767779466829,-500.0,0.00038356,14]
[400690234,1767779466840,-500.0,0.00038356,14]
[400690236,1767779466849,-768.9,0.00038356,14]
[400690238,1767779466859,-175.38153848,0.00038356,14]
[400690240,1767779466869,-500.0,0.00038356,14]
[400690242,1767779466878,-500.0,0.00038356,14]
[400690244,1767779466889,-500.0,0.00038356,14]
[400690246,1767779466901,-500.0,0.00038356,14]
[400690248,1767779466912,-500.0,0.00038356,14]
[400690250,1767779466922,-521.81556517,0.00038356,14]
[400690252,1767779466934,-500.0,0.00038356,14]
[400690254,1767779466944,-844.15,0.00038356,14]
[400690256,1767779466954,-500.0,0.00038356,14]
[400690258,1767779466968,-500.0,0.00038356,14]
[400690260,1767779466977,-500.0,0.00038356,14]
[400690262,1767779466987,-151.0,0.00038356,120]
[400690264,1767779466996,-500.0,0.00038356,14]
[400690266,1767779467008,-500.0,0.00038356,14]
[400690268,1767779467017,-151.0,0.00038356,120]
[400690270,1767779467026,-775.76,0.00038356,14]
[400690272,1767779467036,-500.0,0.00038356,14]
[400690274,1767779467046,-500.0,0.00038356,14]
[400690276,1767779467055,-151.0,0.00038356,120]
[400690278,1767779467065,-1172.73,0.00038356,14]
[400690280,1767779467074,-548.58017999,0.00038356,14]
[400690282,1767779467083,-389.713068,0.00038356,28]
[400690284,1767779467092,-258.168608,0.00038356,120]
[400690286,1767779467101,-500.0,0.00038356,14]
[400690288,1767779467110,-151.0,0.00038356,120]
[400690290,1767779467119,-500.0,0.00038356,14]
[400690292,1767779467128,-1102.29,0.00038356,14]
[400690294,1767779467138,-151.0,0.00038356,120]
[400690296,1767779467148,-389.713068,0.00038356,28]
[400690298,1767779467157,-612.20616772,0.00038356,14]
[400690299,1767779467167,-500.0,0.00038356,14]
[400690301,1767779467176,-500.0,0.00038356,14]
[400690303,1767779467185,-564.85547955,0.00038356,14]
[400690305,1767779467195,-151.0,0.00038356,120]
[400690307,1767779467204,-500.0,0.00038356,14]
[400690309,1767779467214,-500.0,0.00038356,14]
[400690311,1767779467224,-155.965127,0.00038356,120]
[400690314,1767779467233,-389.713068,0.00038356,28]
[400690315,1767779467242,-3542.99,0.00038356,14]
[400690317,1767779467251,-500.0,0.00038356,14]
[400690319,1767779467260,-500.0,0.00038356,14]
[400690321,1767779467269,-389.713068,0.00038356,28]
[400690323,1767779467279,-660.67,0.00038356,14]
[400690325,1767779467288,-1733.11,0.00038356,14]
[400690327,1767779467297,-500.0,0.00038356,14]
[400690329,1767779467307,-151.0,0.00038356,120]
[400690331,1767779467317,-500.0,0.00038356,2]
[400690333,1767779467327,-500.0,0.00038356,14]
[400690335,1767779467337,-503.36,0.00038356,14]
[400690337,1767779467346,-500.0,0.00038356,14]
[400690339,1767779467356,-151.0,0.00038356,120]
[400690341,1767779467365,-500.0,0.00038356,14]
[400690343,1767779467375,-500.0,0.00038356,14]
[400690345,1767779467384,-1189.49,0.00038356,14]
[400690347,1767779467393,-500.0,0.00038356,14]
[400690349,1767779467406,-500.0,0.00038356,14]
[400690351,1767779467415,-1874.58,0.00038356,14]
[400690353,1767779467424,-500.0,0.00038356,14]
[400690355,1767779467434,-500.0,0.00038356,14]
[400690357,1767779467443,-500.0,0.00038356,14]
[400690359,1767779467452,-500.0,0.00038356,14]
[400690361,1767779467462,-500.0,0.00038356,14]
[400690363,1767779467471,-1766.52,0.00038356,14]
[400690365,1767779467480,-1014.97,0.00038356,14]
[400690367,1767779467490,-500.0,0.00038356,14]
[400690368,1767779467499,-500.0,0.00038356,14]
[400690370,1767779467509,-976.72,0.00038356,14]
[400690372,1767779467518,-500.0,0.00038356,14]
[400690374,1767779467527,-500.0,0.00038356,14]
[400690376,1767779467537,-500.0,0.00038356,14]
[400690378,1767779467547,-587.70115427,0.00038356,14]
[400690380,1767779467556,-500.0,0.00038356,14]
[400690382,1767779467565,-500.0,0.00038356,14]
[400690384,1767779467575,-500.0,0.00038356,14]
[400690386,1767779467584,-500.0,0.00038356,14]
[400690388,1767779467594,-500.0,0.00038356,14]
[400690390,1767779467604,-500.0,0.00038356,14]
[400690392,1767779467613,-543.48,0.00038356,14]
[400690394,1767779467622,-500.0,0.00038356,2]
[400690396,1767779467631,-1171.53,0.00038356,14]
[400690398,1767779467640,-500.0,0.00038356,14]
[400690400,1767779467651,-500.0,0.00038356,14]
[400690402,1767779467659,-500.0,0.00038356,14]
[400690404,1767779467669,-500.0,0.00038356,14]
[400690406,1767779467678,-1515.73,0.00038356,14]
[400690408,1767779467687,-500.0,0.00038356,14]
[400690410,1767779467697,-151.0,0.00038356,2]
[400690411,1767779467706,-151.0,0.00038356,2]
[400690413,1767779467715,-151.0,0.00038356,2]
[400690415,1767779467724,-1000.0,0.00038356,10]
[400690417,1767779467733,-1000.0,0.00038356,10]
[400690419,1767779467743,-1000.0,0.00038356,10]
[400690421,1767779467752,-1000.0,0.00038356,10]
[400690423,1767779467762,-1000.0,0.00038356,10]
[400690425,1767779467771,-1000.0,0.00038356,10]
[400690427,1767779467780,-1000.0,0.00038356,10]
[400690429,1767779467789,-1000.0,0.00038356,10]
[400690431,1767779467798,-1000.0,0.00038356,10]
[400690433,1767779467807,-1000.0,0.00038356,10]
[400690435,1767779467815,-1000.0,0.00038356,10]
[400690437,1767779467824,-1000.0,0.00038356,10]
[400690439,1767779467833,-1000.0,0.00038356,10]
[400690441,1767779467842,-1000.0,0.00038356,10]
[400690442,1767779467851,-1000.0,0.00038356,10]
[400690445,1767779467864,-1000.0,0.00038356,10]
[400690446,1767779467874,-1000.0,0.00038356,10]
[400690447,1767779467882,-1000.0,0.00038356,10]
[400690448,1767779467891,-1000.0,0.00038356,10]
[400690449,1767779467900,-1000.0,0.00038356,10]
[400690450,1767779467909,-1000.0,0.00038356,10]
[400690451,1767779467918,-1000.0,0.00038356,10]
[400690452,1767779467927,-1000.0,0.00038356,10]
[400690453,1767779467936,-1000.0,0.00038356,10]
[400690454,1767779467944,-1000.0,0.00038356,10]
[400690455,1767779467953,-1000.0,0.00038356,10]
[400690456,1767779467963,-1000.0,0.00038356,10]
[400690457,1767779467974,-1000.0,0.00038356,10]
[400690458,1767779467984,-1000.0,0.00038356,10]
[400690459,1767779467992,-1000.0,0.00038356,10]
[400690460,1767779468003,-1000.0,0.00038356,10]
[400690461,1767779468012,-1000.0,0.00038356,10]
[400690463,1767779468021,-1000.0,0.00038356,10]
[400690465,1767779468031,-1000.0,0.00038356,10]
[400690467,1767779468042,-1000.0,0.00038356,10]
[400690469,1767779468052,-1000.0,0.00038356,10]
[400690471,1767779468061,-1000.0,0.00038356,10]
[400690474,1767779468071,-1000.0,0.00038356,10]
[400690476,1767779468081,-1000.0,0.00038356,10]
[400690478,1767779468090,-1000.0,0.00038356,10]
[400690479,1767779468099,-1000.0,0.00038356,10]
[400690481,1767779468109,-1000.0,0.00038356,10]
[400690483,1767779468119,-1000.0,0.00038356,10]
[400690485,1767779468129,-1000.0,0.00038356,10]
[400690487,1767779468138,-1000.0,0.00038356,10]
[400690489,1767779468148,-1000.0,0.00038356,10]
[400690491,1767779468157,-1000.0,0.00038356,10]
[400690493,1767779468167,-1000.0,0.00038356,10]
[400690495,1767779468176,-1000.0,0.00038356,10]
[400690497,1767779468186,-1000.0,0.00038356,10]
[400690499,1767779468196,-1000.0,0.00038356,10]
[400690501,1767779468205,-1000.0,0.00038356,10]
[400690503,1767779468215,-1000.0,0.00038356,10]
[400690505,1767779468224,-1000.0,0.00038356,10]
[400690507,1767779468235,-1000.0,0.00038356,10]
[400690509,1767779468245,-1000.0,0.00038356,10]
[400690511,1767779468254,-1000.0,0.00038356,10]
[400690513,1767779468264,-1000.0,0.00038356,10]
[400690515,1767779468275,-1000.0,0.00038356,10]
[400690517,1767779468288,-1000.0,0.00038356,10]
[400690519,1767779468299,-1000.0,0.00038356,10]
[400690521,1767779468310,-1000.0,0.00038356,10]
[400690523,1767779468321,-1000.0,0.00038356,10]
[400690525,1767779468332,-1000.0,0.00038356,10]
[400690527,1767779468343,-1000.0,0.00038356,10]
[400690529,1767779468354,-1000.0,0.00038356,10]
[400690531,1767779468365,-1000.0,0.00038356,10]
[400690533,1767779468375,-1000.0,0.00038356,10]
[400690535,1767779468385,-1000.0,0.00038356,10]
[400690536,1767779468397,-1000.0,0.00038356,10]
[400690538,1767779468414,-1000.0,0.00038356,10]
[400690540,1767779468425,-1000.0,0.00038356,10]
[400690542,1767779468435,-1000.0,0.00038356,10]
[400690544,1767779468446,-1000.0,0.00038356,10]
[400690547,1767779468458,-703.0,0.00038356,10]
[400690549,1767779468468,-1348.46498127,0.00038356,30]
[400690551,1767779468478,-247.149859,0.00038356,120]
[400690553,1767779468488,-247.149859,0.00038356,120]
[400690554,1767779468499,-247.149859,0.00038356,120]
[400690556,1767779468510,-247.149859,0.00038356,120]
[400690558,1767779468520,-247.149859,0.00038356,120]
[400690560,1767779468530,-247.149859,0.00038356,120]
[400690562,1767779468540,-247.149859,0.00038356,120]
[400690564,1767779468550,-247.149859,0.00038356,120]
[400690566,1767779468563,-247.149859,0.00038356,120]
[400690568,1767779468574,-247.149859,0.00038356,120]
[400690570,1767779468584,-247.149859,0.00038356,120]
[400690573,1767779468607,-247.149859,0.00038356,120]
[400690575,1767779468622,-300.0,0.00038357,2]
[400690577,1767779468633,-300.0,0.00038363,2]
[400690579,1767779468643,-300.0,0.00038366,2]
[400690581,1767779468656,-300.0,0.00038376,2]
[400690583,1767779468667,-1000.0,0.00038376,7]
[400690585,1767779468677,-300.0,0.00038396,2]
[400690587,1767779468687,-300.0,0.00038405,2]
[400690589,1767779468697,-509.0,0.00038408,11]
[400690591,1767779468707,-300.0,0.00038409,2]
[400690593,1767779468717,-300.0,0.0003841,2]
[400690595,1767779468727,-1000.0,0.00038413,7]
[400690597,1767779468737,-300.0,0.00038414,2]
[400690599,1767779468747,-300.0,0.00038427,2]
[400690601,1767779468757,-300.0,0.00038443,2]
[400690603,1767779468767,-300.0,0.00038446,2]
[400690605,1767779468777,-300.0,0.00038453,2]
[400690607,1767779468786,-300.0,0.00038453,2]
[400690609,1767779468796,-300.0,0.00038455,2]
[400690611,1767779468807,-300.0,0.00038459,2]
[400690614,1767779468817,-300.0,0.00038463,2]
[400690616,1767779468827,-300.0,0.0003847,2]
[400690618,1767779468837,-630.07344,0.00038488,30]
[400690620,1767779468847,-300.0,0.0003849,2]
[400690622,1767779468858,-300.0,0.00038493,2]
[400690624,1767779468869,-1348.46498127,0.00038493,30]
[400690626,1767779468879,-1000.0,0.00038498,7]
[400690628,1767779468889,-2443.25,0.000385,30]
[400690630,1767779468899,-645.27,0.000385,14]
[400690632,1767779468910,-160.0,0.000385,26]
[400690634,1767779468920,-160.0,0.000385,26]
[400690637,1767779468931,-160.0,0.000385,26]
[400690639,1767779468940,-300.0,0.00038506,2]
[400690641,1767779468951,-300.0,0.00038517,2]
[400690643,1767779468963,-300.0,0.00038519,2]
[400690645,1767779468973,-300.0,0.00038526,2]
[400690647,1767779468985,-300.0,0.00038528,2]
[400690649,1767779468995,-300.0,0.00038531,2]
[400690651,1767779469006,-300.0,0.00038541,2]
[400690653,1767779469016,-150.0,0.00038545,7]
[400690655,1767779469027,-300.0,0.00038545,2]
[400690657,1767779469036,-300.0,0.00038548,2]
[400690659,1767779469046,-300.0,0.00038549,2]
[400690661,1767779469056,-300.0,0.00038553,2]
[400690663,1767779469066,-300.0,0.00038566,2]
[400690665,1767779469076,-300.0,0.00038566,2]
[400690667,1767779469086,-500.0,0.0003857,2]
[400690669,1767779469098,-983.46328676,0.0003857,2]
[400690671,1767779469112,-1000.0,0.0003857,2]
[400690673,1767779469131,-1000.0,0.0003857,2]
[400690675,1767779469141,-300.0,0.00038571,2]
[400690677,1767779469151,-300.0,0.00038572,2]
[400690679,1767779469161,-300.0,0.0003858,2]
[400690681,1767779469171,-300.0,0.00038586,2]
[400690683,1767779469181,-300.0,0.00038586,2]
[400690685,1767779469192,-300.0,0.0003859,2]
[400690687,1767779469202,-300.0,0.0003859,2]
[400690689,1767779469212,-528.40290224,0.00038591,120]
[400690691,1767779469222,-927.37,0.000386,14]
[400690693,1767779469233,-1000.0,0.000386,7]
[400690695,1767779469244,-300.0,0.00038606,2]
[400690697,1767779469255,-5507.91682751,0.00038606,2]
[400690699,1767779469265,-300.0,0.00038614,2]
[400690701,1767779469275,-1000.0,0.00038615,7]
[400690703,1767779469285,-300.0,0.00038617,2]
[400690705,1767779469295,-492.93948843,0.00038619,7]
[400690708,1767779469306,-300.0,0.00038624,2]
[400690710,1767779469316,-151.0,0.00038627,14]
[400690712,1767779469326,-1000.0,0.0003863,2]
[400690714,1767779469336,-1000.0,0.0003863,2]
[400690716,1767779469346,-1000.0,0.0003863,2]
[400690718,1767779469357,-1000.0,0.0003863,2]
[400690720,1767779469367,-1000.0,0.0003863,2]
[400690722,1767779469378,-1000.0,0.0003863,2]
[400690724,1767779469389,-1000.0,0.0003863,2]
[400690726,1767779469400,-459.71410098,0.0003863,2]
[400690728,1767779469410,-279.911996,0.0003863,14]
[400690730,1767779469420,-297.88460634,0.0003863,7]
[400690732,1767779469430,-164.0,0.0003863,7]
[400690734,1767779469439,-152.0,0.0003863,7]
[400690736,1767779469449,-154.0,0.0003863,7]
[400690738,1767779469459,-164.0,0.0003863,7]
[400690740,1767779469469,-152.0,0.0003863,7]
[400690742,1767779469479,-154.0,0.0003863,7]
[400690744,1767779469489,-738.16298262,0.0003863,7]
[400690746,1767779469499,-164.0,0.0003863,7]
[400690748,1767779469509,-152.0,0.0003863,7]
[400690750,1767779469519,-154.0,0.0003863,7]
[400690752,1767779469530,-164.0,0.0003863,7]
[400690754,1767779469540,-154.0,0.0003863,7]
[400690757,1767779469550,-152.0,0.0003863,7]
[400690759,1767779469560,-158.65429393,0.0003863,7]
[400690761,1767779469569,-151.0,0.0003863,7]
[400690763,1767779469578,-154.0,0.0003863,7]
[400690765,1767779469587,-152.0,0.0003863,7]
[400690767,1767779469598,-158.0,0.0003863,7]
[400690769,1767779469609,-151.0,0.0003863,7]
[400690771,1767779469622,-154.0,0.0003863,7]
[400690773,1767779469631,-158.0,0.0003863,7]
[400690775,1767779469642,-157.0,0.0003863,7]
[400690777,1767779469652,-154.0,0.0003863,7]
[400690779,1767779469662,-152.0,0.0003863,7]
[400690781,1767779469672,-162.89403205,0.0003863,7]
[400690784,1767779469682,-154.0,0.0003863,7]
[400690786,1767779469692,-152.0,0.0003863,7]
[400690788,1767779469702,-154.0,0.0003863,7]
[400690790,1767779469712,-155.24514317,0.0003863,7]
[400690792,1767779469722,-154.0,0.0003863,7]
[400690794,1767779469732,-154.0,0.0003863,7]
[400690796,1767779469742,-154.0,0.0003863,7]
[400690798,1767779469752,-154.0,0.0003863,7]
[400690800,1767779469761,-154.0,0.0003863,7]
[400690802,1767779469771,-154.0,0.0003863,7]
[400690804,1767779469780,-154.0,0.0003863,7]
[400690806,1767779469791,-299.68684401,0.0003863,7]
[400690809,1767779469800,-152.54840679,0.0003863,2]
[400690811,1767779469810,-192.1211424,0.0003863,2]
[400690813,1767779469820,-500.0,0.0003863,14]
[400690815,1767779469829,-500.0,0.0003863,3]
[400690817,1767779469840,-1000.0,0.0003863,2]
[400690819,1767779469850,-500.0,0.0003863,14]
[400690821,1767779469859,-500.0,0.0003863,14]
[400690823,1767779469869,-500.0,0.0003863,14]
[400690825,1767779469879,-537.11668853,0.0003863,14]
[400690827,1767779469888,-500.0,0.0003863,14]
[400690829,1767779469898,-500.0,0.0003863,14]
[400690831,1767779469909,-297.12524933,0.0003863,14]
[400690833,1767779469919,-500.0,0.0003863,14]
[400690835,1767779469929,-500.0,0.0003863,14]
[400690838,1767779469939,-646.83306814,0.0003863,14]
[400690840,1767779469948,-500.0,0.0003863,14]
[400690842,1767779469958,-508.06729649,0.0003863,14]
[400690844,1767779469972,-500.0,0.0003863,14]
[400690846,1767779469982,-566.02661943,0.0003863,14]
[400690848,1767779469991,-521.94597791,0.0003863,14]
[400690850,1767779470000,-500.0,0.0003863,14]
[400690852,1767779470011,-500.0,0.0003863,14]
[400690854,1767779470020,-151.0,0.0003863,7]
[400690856,1767779470031,-151.0,0.0003863,7]
[400690858,1767779470043,-152.0,0.0003863,7]
[400690860,1767779470052,-151.0,0.0003863,7]
[400690862,1767779470063,-1260.0,0.0003863,7]
[400690864,1767779470073,-152.0,0.0003863,7]
[400690867,1767779470083,-151.0,0.0003863,7]
[400690869,1767779470092,-1260.0,0.0003863,7]
[400690871,1767779470102,-162.596281,0.0003863,7]
[400690873,1767779470112,-840.0,0.0003863,7]
[400690875,1767779470124,-151.0,0.0003863,7]
[400690877,1767779470134,-1260.0,0.0003863,7]
[400690879,1767779470144,-248.99475294,0.0003863,7]
[400690881,1767779470155,-987.18375796,0.0003863,7]
[400690883,1767779470166,-1260.0,0.0003863,7]
[400690885,1767779470176,-1260.0,0.0003863,7]
[400690887,1767779470186,-1260.0,0.0003863,7]
[400690889,1767779470197,-1260.0,0.0003863,7]
[400690892,1767779470207,-1260.0,0.0003863,7]
[400690894,1767779470216,-152.0,0.0003863,7]
[400690896,1767779470226,-1260.0,0.0003863,7]
[400690898,1767779470236,-152.0,0.0003863,7]
[400690900,1767779470246,-1260.0,0.0003863,7]
[400690902,1767779470256,-500.0,0.0003863,14]
[400690904,1767779470265,-152.0,0.0003863,7]
[400690906,1767779470277,-1260.0,0.0003863,7]
[400690908,1767779470287,-152.0,0.0003863,7]
[400690910,1767779470297,-1260.0,0.0003863,7]
[400690912,1767779470307,-152.0,0.0003863,7]
[400690914,1767779470316,-1260.0,0.0003863,7]
[400690916,1767779470327,-151.0,0.0003863,7]
[400690918,1767779470337,-152.0,0.0003863,7]
[400690920,1767779470347,-1260.0,0.0003863,7]
[400690922,1767779470358,-151.0,0.0003863,7]
[400690925,1767779470368,-152.0,0.0003863,7]
[400690927,1767779470378,-1260.0,0.0003863,7]
[400690929,1767779470388,-152.0,0.0003863,7]
[400690931,1767779470398,-1260.0,0.0003863,7]
[400690933,1767779470409,-152.0,0.0003863,7]
[400690935,1767779470420,-1260.0,0.0003863,7]
[400690937,1767779470431,-152.0,0.0003863,7]
[400690939,1767779470442,-1260.0,0.0003863,7]
[400690941,1767779470452,-152.0,0.0003863,7]
[400690943,1767779470463,-151.0,0.0003863,7]
[400690945,1767779470473,-1260.0,0.0003863,7]
[400690947,1767779470483,-152.0,0.0003863,7]
[400690949,1767779470493,-151.0,0.0003863,7]
[400690952,1767779470503,-1260.0,0.0003863,7]
[400690954,1767779470512,-152.0,0.0003863,7]
[400690956,1767779470522,-151.0,0.0003863,7]
[400690958,1767779470531,-1260.0,0.0003863,7]
[400690960,1767779470541,-152.0,0.0003863,7]
[400690962,1767779470551,-1260.0,0.0003863,7]
[400690964,1767779470560,-152.0,0.0003863,7]
[400690966,1767779470570,-152.0,0.0003863,7]
[400690968,1767779470580,-1260.0,0.0003863,7]
[400690970,1767779470589,-151.0,0.0003863,7]
[400690972,1767779470599,-500.0,0.0003863,14]
[400690974,1767779470610,-152.0,0.0003863,7]
[400690977,1767779470620,-1260.0,0.0003863,7]
[400690979,1767779470629,-151.0,0.0003863,7]
[400690981,1767779470641,-152.0,0.0003863,7]
[400690983,1767779470652,-1260.0,0.0003863,7]
[400690985,1767779470662,-151.0,0.0003863,7]
[400690987,1767779470671,-152.0,0.0003863,7]
[400690989,1767779470681,-1260.0,0.0003863,7]
[400690991,1767779470691,-151.0,0.0003863,7]
[400690993,1767779470702,-152.0,0.0003863,7]
[400690995,1767779470711,-151.0,0.0003863,7]
[400690997,1767779470721,-152.0,0.0003863,7]
[400690999,1767779470730,-151.0,0.0003863,7]
[400691001,1767779470740,-152.0,0.0003863,7]
[400691003,1767779470750,-1260.0,0.0003863,7]
[400691006,1767779470760,-151.0,0.0003863,7]
[400691008,1767779470770,-1077.40310112,0.0003863,7]
[400691010,1767779470779,-151.0,0.0003863,7]
[400691012,1767779470788,-152.0,0.0003863,7]
[400691014,1767779470798,-151.0,0.0003863,7]
[400691016,1767779470808,-151.0,0.0003863,7]
[400691018,1767779470818,-166.87127614,0.0003863,7]
[400691020,1767779470828,-151.0,0.0003863,7]
[400691022,1767779470837,-158.39235999,0.0003863,7]
[400691024,1767779470848,-151.0,0.0003863,7]
[400691026,1767779470859,-500.0,0.0003863,14]
[400691028,1767779470875,-151.0,0.0003863,7]
[400691057,1767779471145,-151.0,0.0003863,7]
[400691059,1767779471156,-151.0,0.0003863,7]
[400691061,1767779471165,-151.0,0.0003863,7]
[400691063,1767779471174,-151.0,0.0003863,7]
[400691066,1767779471185,-151.0,0.0003863,7]
[400691068,1767779471194,-151.0,0.0003863,7]
[400691070,1767779471203,-151.0,0.0003863,7]
[400691072,1767779471213,-151.0,0.0003863,7]
[400691074,1767779471223,-151.0,0.0003863,7]
[400691076,1767779471232,-151.0,0.0003863,7]
[400691077,1767779471241,-151.0,0.0003863,7]
[400691078,1767779471251,-151.0,0.0003863,7]
[400691079,1767779471261,-151.0,0.0003863,7]
[400691080,1767779471270,-151.0,0.0003863,7]
[400691081,1767779471280,-151.0,0.0003863,7]
[400691082,1767779471289,-500.0,0.0003863,14]
[400691083,1767779471299,-151.0,0.0003863,7]
[400691084,1767779471308,-151.0,0.0003863,7]
[400691085,1767779471318,-151.0,0.0003863,7]
[400691086,1767779471328,-151.0,0.0003863,7]
[400691087,1767779471338,-612.75,0.0003863,14]
[400691088,1767779471349,-151.0,0.0003863,7]